fUST/lending_fUST_20250415
["ID","MTS","AMOUNT","RATE_DAILY","PERIOD"]
[358063546,1744681834412,-3766.87593471,0.00029521,8]
[358063547,1744681834429,-2249.0,0.00029595,2]
[358063548,1744681834439,-1500.0,0.00029664,4]
[358063549,1744681834450,-180.03780794,0.00029914,4]
[358063550,1744681834461,-500.0,0.00029973,5]
[358063551,1744681834471,-213.6678568,0.00029984,30]
[358063552,1744681834481,-565.0530007,0.00029988,30]
[358063553,1744681834491,-156.8657715,0.00029988,30]
[358063554,1744681834503,-232.31012066,0.0002999,2]
[358063555,1744681834514,-1567.87914346,0.0002999,2]
[358063556,1744681834524,-160.75552848,0.00029999,10]
[358063557,1744681834535,-500.0,0.00029999,2]
[358063558,1744681834545,-25722.95583243,0.0003,2]
[358063559,1744681834555,-131787.81873055,0.0003,2]
[358063569,1744681838466,-838.51730609,0.00026584,2]
[358063570,1744681838477,-460.48269391,0.00026585,2]
[358064196,1744681846324,-3572.92119429,0.00026585,2]
[358064197,1744681846337,-281.18342237,0.00026585,2]
[358064198,1744681846346,-150.09,0.00026595,2]
[358064200,1744681846356,-150.071,0.00026595,2]
[358064202,1744681846367,-402.0,0.00026595,2]
[358064204,1744681846377,-11973.41154546,0.000274,2]
[358064208,1744681846406,-358026.58845454,0.000274,2]
[358064210,1744681846416,-402.0,0.00029595,2]
[358064212,1744681846431,-62032.62731767,0.0003,2]
[358065784,1744683032639,-1104.5235858,0.00024267,2]
[358065785,1744683032653,-250.0,0.00024357,2]
[358065786,1744683032667,-247.806548,0.00024491,2]
[358065787,1744683032681,-1000.0,0.00024624,2]
[358065789,1744683032695,-250.0,0.00024724,2]
[358065792,1744683032708,-573.44032777,0.00025205,2]
[358065794,1744683032721,-500.0,0.00025373,2]
[358065796,1744683032734,-500.0,0.00025373,2]
[358065799,1744683032747,-506.82858345,0.00025373,2]
[358065801,1744683032760,-512.14752037,0.00025373,2]
[358065804,1744683032773,-500.0,0.00025373,2]
[358065805,1744683032786,-504.66822116,0.00025373,2]
[358065806,1744683032799,-504.21481781,0.00025373,2]
[358065807,1744683032812,-151.0,0.00025378,2]
[358065808,1744683032825,-207.4,0.00025378,2]
[358065809,1744683032840,-300.0,0.00025392,2]
[358065810,1744683032853,-4718.71394932,0.00025393,2]
[358065811,1744683032869,-300.0,0.00025393,2]
[358065812,1744683032883,-24900.0,0.00025394,2]
[358065813,1744683032896,-3070.3351058,0.00025573,2]
[358065814,1744683032909,-838.71732705,0.00026103,2]
[358065815,1744683032922,-221.95194943,0.00026506,2]
[358065816,1744683032937,-160.0,0.00026563,2]
[358065817,1744683032950,-160.0,0.00026563,2]
[358065818,1744683032963,-12547.34863188,0.00026563,2]
[358065819,1744683032976,-215.0738,0.00026747,2]
[358065820,1744683032989,-150.158,0.00026868,2]
[358065821,1744683033003,-2249.0,0.00026868,2]
[358065822,1744683033016,-3191.79306257,0.000269,7]
[358065823,1744683033030,-502.15333232,0.00027373,2]
[358065824,1744683033044,-511.61062759,0.00027373,2]
[358065825,1744683033058,-451.4231052,0.00027373,2]
[358065826,1744683033072,-500.0,0.00027373,2]
[358065827,1744683033086,-501.99704264,0.00027373,2]
[358065828,1744683033099,-500.0,0.00027373,2]
[358065829,1744683033113,-501.64187563,0.00027373,2]
[358065830,1744683033126,-500.0,0.00027373,2]
[358065831,1744683033141,-150.40085445,0.00027373,2]
[358065832,1744683033154,-500.0,0.00027373,2]
[358065833,1744683033168,-500.0,0.00027373,2]
[358065834,1744683033181,-155.41472256,0.00027373,2]
[358065835,1744683033196,-2028.08175255,0.0002739,2]
[358065836,1744683033210,-1223.44084335,0.0002739,2]
[358065837,1744683033223,-500.0,0.00027397,4]
[358065838,1744683033237,-500.0,0.00027399,2]
[358065839,1744683033251,-181.93355422,0.00027399,2]
[358065840,1744683033265,-500.0,0.00027399,2]
[358065841,1744683033279,-500.0,0.00027399,2]
[358065842,1744683033292,-326.55016755,0.00027399,2]
[358065843,1744683033306,-385.38192067,0.00027399,2]
[358065844,1744683033320,-500.0,0.00027399,2]
[358065845,1744683033334,-500.0,0.00027399,2]
[358065846,1744683033348,-499.38217904,0.00027399,2]
[358065847,1744683033361,-500.0,0.00027399,2]
[358065848,1744683033376,-500.0,0.00027399,2]
[358065849,1744683033389,-594.53045766,0.00027399,2]
[358065850,1744683033403,-500.0,0.00027399,2]
[358065851,1744683033417,-500.0,0.00027399,2]
[358065852,1744683033431,-500.0,0.00027399,2]
[358065853,1744683033444,-500.0,0.00027399,2]
[358065854,1744683033458,-500.0,0.00027399,2]
[358065855,1744683033472,-500.0,0.00027399,2]
[358065856,1744683033486,-500.0,0.00027399,2]
[358065857,1744683033500,-500.0,0.00027399,2]
[358065858,1744683033513,-624.95503903,0.00027399,2]
[358065859,1744683033528,-194.01116008,0.00027399,2]
[358065860,1744683033542,-500.0,0.00027399,2]
[358065861,1744683033557,-499.99999999,0.00027399,2]
[358065862,1744683033571,-186.90004019,0.00027399,2]
[358065863,1744683033585,-151.0,0.00027399,2]
[358065864,1744683033599,-181933.59505669,0.000274,2]
[358067026,1744684072355,151.52644187,0.000216,120]
[358067060,1744684232503,-469.475832,0.00023671,2]
[358067061,1744684232513,-247.015837,0.00024129,2]
[358067062,1744684232522,-207.4,0.00024207,2]
[358067063,1744684232531,-299.683321,0.00024221,2]
[358067064,1744684232610,-0.316679,0.00024221,2]
[358067065,1744684232620,-300.0,0.00024221,2]
[358067066,1744684232630,-8369.55962452,0.00024222,2]
[358067113,1744684238663,-1390.80000001,0.00024222,2]
[358067120,1744684238716,-985.13637237,0.00024222,2]
[358067126,1744684238772,-1840.43635629,0.00024222,2]
[358067129,1744684238784,-787.54366534,0.00024222,2]
[358067134,1744684238829,-1298.56998775,0.00024222,2]
[358067137,1744684238841,-742.86505705,0.00024222,2]
[358067467,1744684243648,-525.62684152,0.00024222,2]
[358067470,1744684243669,-381.78807268,0.00024222,2]
[358067477,1744684243725,-344.27807478,0.00024222,2]
[358067777,1744684246779,-7151.82952479,0.00024222,2]
[358067779,1744684246789,-250.0,0.00024257,2]
[358067781,1744684246800,-3110.16212913,0.000249,5]
[358067783,1744684246809,-500.0,0.00024978,2]
[358067785,1744684246819,-159.16,0.00024978,2]
[358067787,1744684246832,-1196.2156739,0.00025,7]
[358067790,1744684246841,-3110.34506544,0.00025105,2]
[358067793,1744684246851,-1659.19358518,0.00025205,2]
[358067795,1744684246861,-6166.10640699,0.00025205,10]
[358067879,1744684383846,160.0,0.00015,2]
[358067957,1744685431788,-247.0158379,0.00024396,2]
[358067959,1744685431798,-1000.0,0.00025104,2]
[358067961,1744685431808,-2779.51043631,0.00025105,2]
[358067963,1744685431819,-300.0,0.00025204,2]
[358067965,1744685431829,-300.0,0.00025204,2]
[358067967,1744685431839,-29695.11664301,0.00025205,10]
[358067970,1744685431849,-160.0,0.00025205,10]
[358067972,1744685431860,-420.08908737,0.00025205,10]
[358067974,1744685431870,-160.0,0.00025205,10]
[358067976,1744685431879,-877.2136,0.00025273,2]
[358067978,1744685431889,-510.41443636,0.00025273,2]
[358067980,1744685431899,-201.78148316,0.0002589,2]
[358067983,1744685431909,-3038.67702558,0.000259,6]
[358067985,1744685431919,-348.24037373,0.00026098,2]
[358067987,1744685431929,-4754.13553918,0.00026098,2]
[358067989,1744685431942,-17827.47477319,0.00026098,2]
[358067991,1744685431952,-838.71732705,0.00026098,2]
[358067993,1744685431962,-160.0,0.00026098,2]
[358067995,1744685431972,-160.0,0.00026098,2]
[358067997,1744685431982,-2107.7165044,0.00026119,3]
[358067999,1744685431992,-300.0,0.00026119,2]
[358068001,1744685432002,-598.86919458,0.00026233,2]
[358068003,1744685432011,-152.61504102,0.00026384,2]
[358068005,1744685432021,-500.3685585,0.00026573,2]
[358068007,1744685432031,-152.61504102,0.00026575,2]
[358068010,1744685432041,-3038.67702533,0.0002659,6]
[358068012,1744685432052,-402.0,0.0002673,2]
[358068014,1744685432062,-152.61504102,0.00026795,2]
[358068016,1744685432071,-152.61504102,0.00026986,2]
[358068018,1744685432081,-155.01913787,0.00027073,2]
[358068020,1744685432091,-329.73926289,0.00027144,2]
[358068022,1744685432101,-329.73926289,0.00027147,2]
[358068024,1744685432111,-504.16919778,0.00027153,2]
[358068026,1744685432121,-299.31460393,0.00027155,2]
[358068028,1744685432131,-34915.82516751,0.00027157,2]
[358068305,1744685438472,-310.338294,0.00027152,2]
[358068463,1744685440192,-189.661706,0.00027152,2]
[358068465,1744685440202,-200.51462857,0.00027152,2]
[358068467,1744685440212,-500.0,0.00027152,2]
[358068469,1744685440222,-500.0,0.00027152,2]
[358068471,1744685440232,-500.0,0.00027152,2]
[358068473,1744685440242,-500.0,0.00027152,2]
[358068475,1744685440252,-500.0,0.00027152,2]
[358068477,1744685440261,-91.09064192,0.00027152,2]
[358068480,1744685440274,-408.90935808,0.00027152,2]
[358068482,1744685440283,-500.0,0.00027152,2]
[358068483,1744685440293,-500.0,0.00027152,2]
[358068485,1744685440302,-500.0,0.00027152,2]
[358068487,1744685440312,-500.0,0.00027152,2]
[358068489,1744685440322,-637.06900789,0.00027152,2]
[358068491,1744685440331,-500.0,0.00027152,2]
[358068493,1744685440341,-275.02163403,0.00027152,2]
[358068496,1744685440353,-224.97836597,0.00027152,2]
[358068498,1744685440362,-500.0,0.00027152,2]
[358068500,1744685440372,-500.0,0.00027152,2]
[358068502,1744685440382,-500.0,0.00027152,2]
[358068504,1744685440392,-500.0,0.00027152,2]
[358068506,1744685440402,-500.0,0.00027152,2]
[358068508,1744685440411,-500.0,0.00027152,2]
[358068510,1744685440421,-206.62054172,0.00027152,2]
[358069340,1744686631876,-513.22354985,0.00025005,2]
[358069341,1744686631900,-722.84733177,0.00025105,2]
[358069342,1744686631922,-500.0,0.00025105,2]
[358069343,1744686631942,-219.2598466,0.00026097,2]
[358069344,1744686631960,-300.0,0.00026109,2]
[358069345,1744686631978,-160.0,0.0002611,2]
[358069346,1744686631994,-12547.34863188,0.0002611,2]
[358069347,1744686632013,-471.69345973,0.00026168,2]
[358069348,1744686632028,-156.8657715,0.000266,2]
[358069349,1744686632046,-156.8657715,0.000266,2]
[358069350,1744686632062,-156.8657715,0.000266,2]
[358069351,1744686632078,-7371.82724807,0.00026701,2]
[358069352,1744686632093,-156.8657715,0.00026701,2]
[358069353,1744686632108,-464.6336449,0.00026701,2]
[358069354,1744686632122,-156.8657715,0.00026701,2]
[358069355,1744686632137,-152.0,0.00026814,2]
[358069356,1744686632151,-213.6678568,0.0002686,2]
[358069357,1744686632166,-157.6610457,0.0002686,2]
[358069358,1744686632180,-2894.17815148,0.000269,7]
[358069359,1744686632196,-213.6678568,0.000269,2]
[358069360,1744686632209,-563.4090847,0.000269,2]
[358069361,1744686632224,-213.6678568,0.000269,2]
[358069362,1744686632238,-159.50945451,0.00026973,2]
[358069363,1744686632253,-296.7653366,0.0002698,2]
[358069364,1744686632268,-500.0,0.00026989,2]
[358069365,1744686632280,-500.0,0.00026989,2]
[358069366,1744686632295,-500.0,0.00026989,2]
[358069367,1744686632309,-500.0,0.00026989,2]
[358069368,1744686632324,-500.0,0.00026989,2]
[358069369,1744686632339,-500.0,0.00026989,2]
[358069370,1744686632355,-500.0,0.00026989,2]
[358069371,1744686632369,-500.0,0.00026989,2]
[358069372,1744686632384,-500.0,0.00026989,2]
[358069373,1744686632397,-500.0,0.00026989,2]
[358069374,1744686632411,-500.0,0.00026989,2]
[358069375,1744686632425,-500.0,0.00026989,2]
[358069376,1744686632440,-500.0,0.00026989,2]
[358069377,1744686632454,-500.0,0.00026989,2]
[358069378,1744686632468,-500.0,0.00026989,2]
[358069379,1744686632482,-500.0,0.00026989,2]
[358069380,1744686632496,-500.0,0.00026989,2]
[358069381,1744686632510,-500.0,0.00026989,2]
[358069382,1744686632524,-500.0,0.00026989,2]
[358069383,1744686632537,-500.0,0.00026989,2]
[358069384,1744686632550,-500.0,0.00026989,2]
[358069385,1744686632564,-650.0,0.00026989,2]
[358069386,1744686632578,-500.0,0.00026989,2]
[358069387,1744686632591,-500.0,0.00026989,2]
[358069388,1744686632605,-237.45211199,0.00026989,2]
[358069389,1744686632618,-500.0,0.00026989,2]
[358069390,1744686632632,-500.0,0.00026989,2]
[358069391,1744686632645,-500.0,0.00026989,2]
[358069392,1744686632659,-500.0,0.00026989,2]
[358069393,1744686632674,-500.0,0.00026989,2]
[358069394,1744686632687,-500.0,0.00026989,2]
[358069395,1744686632700,-500.0,0.00026989,2]
[358069396,1744686632713,-500.0,0.00026989,2]
[358069397,1744686632727,-500.0,0.00026989,2]
[358069398,1744686632741,-500.0,0.00026989,2]
[358069399,1744686632754,-500.0,0.00026989,2]
[358069400,1744686632767,-500.0,0.00026989,2]
[358069401,1744686632781,-261.1307922,0.00026989,2]
[358069402,1744686632794,-500.0,0.00026989,2]
[358069403,1744686632807,-138.99260334,0.00026989,2]
[358069404,1744686632825,-361.00739666,0.00026989,2]
[358069405,1744686632838,-500.0,0.00026989,2]
[358069406,1744686632851,-451.93575734,0.00026989,2]
[358069407,1744686632889,-48.06424266,0.00026989,2]
[358069408,1744686632902,-500.0,0.00026989,2]
[358069409,1744686632915,-500.0,0.00026989,2]
[358069410,1744686632928,-500.0,0.00026989,2]
[358069411,1744686632941,-500.0,0.00026989,2]
[358069412,1744686632954,-500.0,0.00026989,2]
[358069413,1744686632967,-500.0,0.00026989,2]
[358069414,1744686632981,-500.0,0.00026989,2]
[358069415,1744686632993,-500.0,0.00026989,2]
[358069416,1744686633006,-500.0,0.00026989,2]
[358069417,1744686633020,-500.0,0.00026989,2]
[358069418,1744686633033,-500.0,0.00026989,2]
[358069419,1744686633047,-500.0,0.00026989,2]
[358069420,1744686633057,-500.0,0.00026989,2]
[358069421,1744686633068,-500.0,0.00026989,2]
[358069422,1744686633079,-500.0,0.00026989,2]
[358069423,1744686633462,-500.0,0.00026989,2]
[358069424,1744686633488,-500.0,0.00026989,2]
[358069425,1744686633498,-37.96694757,0.00026989,2]
[358069426,1744686633510,-379.32461014,0.00026989,2]
[358069444,1744686637925,-82.70844229,0.00026989,2]
[358069445,1744686637936,-500.0,0.00026989,2]
[358069446,1744686637946,-500.0,0.00026989,2]
[358069447,1744686637956,-500.0,0.00026989,2]
[358069448,1744686637965,-500.0,0.00026989,2]
[358069449,1744686637975,-500.0,0.00026989,2]
[358069450,1744686637985,-500.0,0.00026989,2]
[358069451,1744686637995,-500.0,0.00026989,2]
[358069452,1744686638006,-1272.77943045,0.0002699,3]
[358069453,1744686638083,-5307.70757329,0.0002699,3]
[358069454,1744686638095,-500.0,0.0002699,3]
[358069920,1744686646171,-402.0,0.00026876,2]
[358069921,1744686646181,-34360.5428978,0.0002699,3]
[358069922,1744686646191,-160.0,0.0002699,3]
[358069923,1744686646201,-151.0,0.0002699,7]
[358069924,1744686646212,-420.08908737,0.0002699,3]
[358069925,1744686646221,-160.0,0.0002699,3]
[358069926,1744686646231,-160.0,0.0002699,3]
[358069927,1744686646241,-204.05177238,0.00027,2]
[358069928,1744686646251,-156.8657715,0.00027,2]
[358069929,1744686646261,-448.0941139,0.00027,2]
[358069930,1744686646270,-156.8657715,0.00027,2]
[358069931,1744686646281,-565.0530007,0.00027,2]
[358069932,1744686646291,-1000.0,0.00027,2]
[358069933,1744686646302,-654.15455918,0.00027006,2]
[358069934,1744686646312,-461.00100897,0.00027057,2]
[358069935,1744686646322,-19462.4752231,0.0002709,2]
[358069936,1744686646332,-1562.15222261,0.0002709,3]
[358069937,1744686646344,-11741.50161301,0.0002709,3]
[358069938,1744686646353,-420.08908737,0.0002709,3]
[358069939,1744686646363,-156.8657715,0.000271,2]
[358069940,1744686646373,-218.4983828,0.000271,2]
[358069941,1744686646383,-336.2165319,0.000271,2]
[358069942,1744686646393,-156.8657715,0.000271,2]
[358069943,1744686646403,-579.2073085,0.000271,2]
[358069944,1744686646413,-308.9851911,0.000271,2]
[358069945,1744686646423,-151.0,0.000271,7]
[358069946,1744686646434,-151.0,0.000271,7]
[358069947,1744686646443,-151.0,0.000271,7]
[358069948,1744686646453,-1212.16227619,0.00027127,2]
[358069949,1744686646463,-160.0,0.00027134,2]
[358069950,1744686646473,-565.91267687,0.00027134,2]
[358069951,1744686646483,-151.0,0.00027139,2]
[358069952,1744686646494,-296.7653366,0.00027144,2]
[358069953,1744686646504,-593.5306732,0.00027145,2]
[358069954,1744686646515,-154.406941,0.00027154,7]
[358069955,1744686646526,-152.665877,0.00027154,7]
[358069956,1744686646536,-151.0,0.00027154,7]
[358069957,1744686646546,-500.0,0.00027154,2]
[358069958,1744686646557,-500.0,0.00027154,2]
[358069959,1744686646567,-196.06244953,0.00027154,2]
[358069960,1744686646577,-224.10028615,0.00027154,2]
[358069961,1744686646587,-500.0,0.00027154,2]
[358069962,1744686646596,-151.0,0.00027155,7]
[358069963,1744686646606,-151.0,0.00027155,7]
[358069964,1744686646615,-151.0,0.00027155,7]
[358069965,1744686646625,-172.487737,0.00027155,7]
[358069966,1744686646635,-174.090855,0.00027155,7]
[358069967,1744686646645,-151.0,0.00027155,7]
[358069968,1744686646654,-151.0,0.00027155,7]
[358069969,1744686646663,-151.0,0.00027155,7]
[358069970,1744686646673,-1834.997434,0.00027155,2]
[358069971,1744686646682,-1834.997434,0.00027155,2]
[358069972,1744686646931,-1834.997434,0.00027155,2]
[358069973,1744686646942,-1834.997434,0.00027155,2]
[358069974,1744686646951,-151.0,0.00027155,7]
[358069975,1744686646961,-34396.01944604,0.00027155,2]
[358070016,1744687832246,-169.86175114,0.0002,2]
[358070019,1744687832256,-184.20889715,0.00024905,2]
[358070021,1744687832265,-187.7328636,0.0002607,2]
[358070022,1744687832274,-160.0,0.00026886,2]
[358070025,1744687832283,-539.304,0.00026892,2]
[358070027,1744687832293,-300.0,0.00026899,2]
[358070029,1744687832301,-2923.2680774,0.000269,7]
[358070031,1744687832310,-156.8657715,0.000269,2]
[358070033,1744687832319,-156.8657715,0.000269,2]
[358070035,1744687832329,-156.8657715,0.000269,2]
[358070037,1744687832338,-49.24701032,0.00026956,2]
[358070058,1744687838354,-702.28775907,0.00026956,2]
[358070063,1744687838410,-1539.92311774,0.00026956,2]
[358070284,1744687840407,-428.12187239,0.00026956,2]
[358070286,1744687840417,-186.23842371,0.00026956,2]
[358070288,1744687840426,-1000.0,0.0002698,2]
[358070290,1744687840435,-242.48162846,0.00026985,2]
[358070293,1744687840469,-126.3191787,0.00026985,2]
[358070295,1744687840480,-186.23842371,0.00027004,2]
[358070297,1744687840492,-160.0,0.0002704,2]
[358070299,1744687840502,-157.0,0.00027042,2]
[358070301,1744687840515,-1000.00000001,0.0002705,2]
[358070303,1744687840525,-500.0,0.00027051,2]
[358070305,1744687840537,-500.0,0.00027051,2]
[358070307,1744687840552,-233.89925099,0.00027051,2]
[358070309,1744687840563,-500.0,0.00027051,2]
[358070311,1744687840573,-500.0,0.00027051,2]
[358070313,1744687840583,-500.0,0.00027051,2]
[358070316,1744687840592,-500.0,0.00027051,2]
[358070317,1744687840601,-500.0,0.00027051,2]
[358070319,1744687840610,-500.0,0.00027051,2]
[358070321,1744687840619,-500.0,0.00027051,2]
[358070323,1744687840628,-500.0,0.00027051,2]
[358070325,1744687840638,-500.0,0.00027051,2]
[358070327,1744687840647,-500.0,0.00027051,2]
[358070328,1744687840656,-500.0,0.00027051,2]
[358070330,1744687840666,-500.0,0.00027051,2]
[358070332,1744687840676,-397.29272828,0.00027051,2]
[358070334,1744687840686,-500.0,0.00027051,2]
[358070337,1744687840696,-500.0,0.00027051,2]
[358070339,1744687840706,-500.0,0.00027051,2]
[358070341,1744687840715,-500.0,0.00027051,2]
[358070343,1744687840725,-500.0,0.00027051,2]
[358070345,1744687840734,-500.0,0.00027051,2]
[358070347,1744687840743,-500.0,0.00027051,2]
[358070348,1744687840753,-166.10117675,0.00027051,2]
[358070351,1744687840763,-371.17454461,0.00027051,2]
[358070353,1744687840775,-128.82545539,0.00027051,2]
[358070355,1744687840785,-500.0,0.00027051,2]
[358070357,1744687840794,-500.0,0.00027051,2]
[358070359,1744687840803,-296.23346408,0.00027051,2]
[358070361,1744687840812,-500.0,0.00027051,2]
[358070363,1744687840822,-500.0,0.00027051,2]
[358070365,1744687840831,-500.0,0.00027051,2]
[358070367,1744687840840,-500.0,0.00027051,2]
[358070369,1744687840849,-186.23842371,0.00027052,2]
[358070371,1744687840858,-6262.23988554,0.00027052,2]
[358070373,1744687840870,-827.41,0.00027052,2]
[358070730,1744687846132,-3746.78737795,0.00027052,2]
[358070738,1744687846188,-5147.6251052,0.00027052,2]
[358070740,1744687846200,-381.92818453,0.00027052,2]
[358070854,1744688425715,28002.6,0.00023,30]
[358070857,1744688531327,10000.0,0.00025,120]
[358070910,1744689032277,-151.30835537,0.000229,2]
[358070913,1744689032288,-1135.7436907,0.00023994,2]
[358070915,1744689032298,-435.59499302,0.00024111,2]
[358072034,1744689046432,-51907.99436104,0.00024111,2]
[358072035,1744689046442,-2855.72452091,0.000249,5]
[358072036,1744689046453,-300.0,0.00024972,2]
[358072038,1744689046462,-300.0,0.00024972,2]
[358072040,1744689046472,-303.18400643,0.00024973,2]
[358072042,1744689046482,-491.92010222,0.00024973,2]
[358072044,1744689046492,-160.17583639,0.00024973,2]
[358072046,1744689046502,-2640.22038741,0.0002499,2]
[358072048,1744689046512,-500.0,0.00024999,2]
[358072051,1744689046523,-488.58808092,0.00024999,2]
[358072053,1744689046533,-500.0,0.00024999,2]
[358072056,1744689046543,-446.23346408,0.00024999,2]
[358072058,1744689046552,-13866.23222769,0.00025,2]
[358072060,1744689046561,-1162.29658911,0.00025,3]
[358072062,1744689046571,-9458.13458601,0.00025,2]
[358072277,1744689333442,300.0,0.00025,120]
[358072278,1744689347198,430.116,0.00025,120]
[358072286,1744690200790,-255.04334378,0.000229,2]
[358072288,1744690203993,-148.44560387,0.000229,2]
[358072289,1744690204018,-4.09357446,0.00023975,2]
[358072290,1744690205079,-188.92932071,0.00023975,2]
[358072304,1744690232367,-106.97710483,0.00023975,2]
[358072305,1744690232377,-300.0,0.00023975,2]
[358072306,1744690232388,-24600.0,0.00023976,2]
[358072307,1744690232398,-2053.0037655,0.00024182,2]
[358072308,1744690232407,-877.56410328,0.000249,2]
[358072309,1744690232417,-2760.53370344,0.000249,5]
[358072310,1744690232427,-500.0,0.00024973,2]
[358072311,1744690232437,-500.1886179,0.00024973,2]
[358072312,1744690232447,-368.32752915,0.00024973,2]
[358072313,1744690232456,-500.0,0.00024973,2]
[358072314,1744690232466,-515.74237369,0.00024973,2]
[358072315,1744690232476,-504.61983736,0.00024973,2]
[358072316,1744690232486,-501.18585351,0.00024973,2]
[358072317,1744690232496,-500.0,0.00024973,2]
[358072318,1744690232506,-500.0,0.00024973,2]
[358072319,1744690232517,-506.26417954,0.00024973,2]
[358072320,1744690232527,-500.0,0.00024973,2]
[358072321,1744690232537,-500.0,0.00024973,2]
[358072322,1744690232546,-503.09565829,0.00024973,2]
[358072323,1744690232556,-501.62145296,0.00024973,2]
[358072324,1744690232566,-500.0,0.00024973,2]
[358072325,1744690232576,-501.64754239,0.00024973,2]
[358072326,1744690232586,-456.32703324,0.00024973,2]
[358072327,1744690232596,-502.62984733,0.00024973,2]
[358072328,1744690232605,-152.53917833,0.00024973,2]
[358072329,1744690232615,-502.50184295,0.00024973,2]
[358072330,1744690232625,-2577.74040063,0.0002499,2]
[358072331,1744690232635,-500.0,0.00024999,2]
[358072332,1744690232645,-500.0,0.00024999,2]
[358072333,1744690232654,-500.0,0.00024999,2]
[358072334,1744690232663,-250.0,0.00024999,2]
[358072335,1744690232673,-558.43079631,0.00024999,2]
[358072336,1744690232683,-167.04286692,0.00024999,2]
[358072337,1744690232692,-500.0,0.00024999,2]
[358072338,1744690232702,-500.0,0.00024999,2]
[358072339,1744690232711,-193.18899619,0.00024999,2]
[358072340,1744690232721,-500.0,0.00024999,2]
[358072341,1744690232731,-500.0,0.00024999,2]
[358072342,1744690232740,-586.99218765,0.00024999,2]
[358072343,1744690232750,-11553.45827822,0.00025,2]
[358072344,1744690232760,-581.14829455,0.00025,3]
[358072345,1744690232770,-80541.86541399,0.00025,2]
[358072346,1744690232779,-2760.5337033,0.00025624,6]
[358072347,1744690232789,-420.0,0.00026,2]
[358072348,1744690232798,-368.6103768,0.00026068,2]
[358072349,1744690232808,-420.0,0.0002612,2]
[358072350,1744690232817,-160.0,0.00026157,2]
[358072351,1744690232827,-2760.5337033,0.00026348,6]
[358072352,1744690232838,-152.61504102,0.00026356,2]
[358072353,1744690232848,-152.61504102,0.00026712,2]
[358072354,1744690232858,-326.9336812,0.00026712,2]
[358072355,1744690232871,-2250.80671943,0.00026712,2]
[358072356,1744690232880,-500.0,0.00026713,2]
[358072357,1744690232890,-174.05168976,0.00026722,2]
[358072358,1744690232899,-160.0,0.00026908,2]
[358072359,1744690232909,-187.51114352,0.00026936,2]
[358072360,1744690232918,-2263.098,0.00026936,2]
[358072361,1744690232928,-151.0,0.00026966,2]
[358072362,1744690232937,-207.4,0.00026966,2]
[358072363,1744690232947,-5155.48080126,0.00026972,2]
[358072364,1744690232956,-151.0,0.00026972,7]
[358072365,1744690232966,-151.0,0.00026972,7]
[358072366,1744690232975,-151.0,0.00026972,7]
[358072367,1744690232986,-214.966149,0.00026972,7]
[358072368,1744690232995,-1689.785481,0.00026972,7]
[358072369,1744690233005,-1689.785481,0.00026972,7]
[358072370,1744690233014,-151.0,0.00026972,7]
[358072371,1744690233024,-151.0,0.00026972,7]
[358072372,1744690233034,-1467.997947,0.00026972,2]
[358072373,1744690233044,-1467.997947,0.00026972,2]
[358072374,1744690233054,-695.242255,0.00026972,7]
[358072375,1744690233064,-695.242255,0.00026972,7]
[358072376,1744690233074,-153.351444,0.00026972,7]
[358072377,1744690233083,-500.0,0.00026973,2]
[358072378,1744690233093,-221.09900868,0.00026973,2]
[358072379,1744690233103,-506.83450475,0.00026973,2]